fUST/lending_fUST_20250115
["ID","MTS","AMOUNT","RATE_DAILY","PERIOD"]
[348995475,1736926243994,-151.0,0.00019589,2]
[348995476,1736926244003,-151.0,0.00019589,2]
[348995477,1736926244013,-500.0,0.00019589,3]
[348995478,1736926244022,-500.0,0.00019589,3]
[348995479,1736926244031,-500.0,0.00019589,3]
[348995480,1736926244042,-500.0,0.00019589,3]
[348995481,1736926244135,-500.0,0.00019589,3]
[348995482,1736926244145,-500.0,0.00019589,3]
[348995483,1736926244154,-151.0,0.00019589,2]
[348995484,1736926244164,-481.39849,0.00019589,2]
[348995485,1736926244175,-500.0,0.00019589,3]
[348995486,1736926244184,-481.39849,0.00019589,2]
[348995487,1736926244193,-500.0,0.00019589,3]
[348995488,1736926244202,-500.0,0.00019589,3]
[348995489,1736926244211,-500.0,0.00019589,3]
[348995490,1736926244221,-500.0,0.00019589,3]
[348995491,1736926244230,-855.02,0.00019589,3]
[348995492,1736926244239,-220.86792,0.00019589,2]
[348995493,1736926244249,-500.0,0.00019589,3]
[348995494,1736926244258,-220.86792,0.00019589,2]
[348995495,1736926244267,-500.0,0.00019589,3]
[348995496,1736926244276,-2256.52,0.00019589,2]
[348995497,1736926244286,-365.212107,0.00019589,3]
[348995498,1736926244295,-171.781421,0.00019589,2]
[348995499,1736926244304,-500.0,0.00019589,3]
[348995500,1736926244314,-658.07,0.00019589,3]
[348995501,1736926244323,-500.0,0.00019589,3]
[348995502,1736926244332,-171.781421,0.00019589,2]
[348995503,1736926244342,-500.0,0.00019589,3]
[348995504,1736926244351,-1453.97,0.00019589,3]
[348995505,1736926244361,-587.0,0.00019703,2]
[348995506,1736926244370,-1000.0,0.00019721,2]
[348995507,1736926244380,-151.0,0.00019726,2]
[348995508,1736926244389,-151.0,0.00019726,2]
[348995509,1736926244398,-204.291533,0.00019726,2]
[348995510,1736926244410,-259.35779833,0.00019726,3]
[348995511,1736926244419,-267.100654,0.00019726,2]
[348995512,1736926244428,-267.100654,0.00019726,2]
[348995513,1736926244437,-151.0,0.00019726,2]
[348995514,1736926244447,-500.0,0.00019726,3]
[348995515,1736926244456,-151.0,0.00019726,2]
[348995516,1736926244465,-500.0,0.00019726,3]
[348995517,1736926244474,-151.0,0.00019726,2]
[348995518,1736926244484,-151.0,0.00019726,2]
[348995519,1736926244493,-500.0,0.00019726,3]
[348995520,1736926244502,-151.0,0.00019726,2]
[348995521,1736926244511,-500.0,0.00019726,3]
[348995522,1736926244521,-500.0,0.00019726,3]
[348995523,1736926244530,-151.0,0.00019726,2]
[348995524,1736926244540,-272.842554,0.00019726,2]
[348995525,1736926244549,-272.842554,0.00019726,2]
[348995526,1736926244559,-500.0,0.00019726,2]
[348995527,1736926244568,-284.8064,0.00019726,2]
[348995528,1736926244577,-284.8064,0.00019726,2]
[348995529,1736926244586,-500.0,0.00019726,3]
[348995530,1736926244596,-235.310411,0.00019726,2]
[348995531,1736926244606,-235.310411,0.00019726,2]
[348995532,1736926244615,-151.0,0.00019726,2]
[348995533,1736926244624,-151.0,0.00019726,2]
[348995534,1736926244633,-1233.85,0.00019726,3]
[348995535,1736926244643,-500.0,0.00019726,3]
[348995536,1736926244652,-5032.94,0.00019726,3]
[348995537,1736926244661,-151.0,0.00019726,2]
[348995538,1736926244671,-151.0,0.00019726,2]
[348995539,1736926244680,-500.0,0.00019726,3]
[348995540,1736926244689,-500.0,0.00019726,3]
[348995541,1736926244698,-522.956104,0.00019726,2]
[348995542,1736926244707,-522.956104,0.00019726,2]
[348995543,1736926244716,-500.0,0.00019726,3]
[348995544,1736926244725,-1154.13,0.00019726,3]
[348995545,1736926244735,-500.0,0.00019726,3]
[348995546,1736926244744,-500.0,0.00019726,3]
[348995547,1736926244753,-500.0,0.00019726,3]
[348995548,1736926244763,-570.5,0.00019726,3]
[348995549,1736926244772,-500.0,0.00019726,3]
[348995550,1736926244781,-500.0,0.00019726,3]
[348995551,1736926244792,-500.0,0.00019726,3]
[348995552,1736926244803,-151.0,0.00019726,2]
[348995553,1736926244812,-500.0,0.00019726,3]
[348995554,1736926244821,-500.0,0.00019726,3]
[348995555,1736926244830,-500.0,0.00019726,3]
[348995556,1736926244839,-500.0,0.00019726,3]
[348995557,1736926244848,-500.0,0.00019726,3]
[348995558,1736926244857,-500.0,0.00019726,3]
[348995559,1736926244867,-151.0,0.00019726,2]
[348995560,1736926244876,-481.39849,0.00019726,2]
[348995561,1736926244885,-500.0,0.00019726,3]
[348995562,1736926244896,-481.39849,0.00019726,2]
[348995563,1736926244905,-441.8,0.00019726,3]
[348995564,1736926244915,-500.0,0.00019726,3]
[348995565,1736926244924,-500.0,0.00019726,3]
[348995566,1736926244933,-500.0,0.00019726,3]
[348995567,1736926244943,-855.02,0.00019726,3]
[348995568,1736926244952,-500.0,0.00019726,3]
[348995569,1736926244961,-500.0,0.00019726,3]
[348995570,1736926244970,-2256.52,0.00019726,2]
[348995571,1736926244980,-500.0,0.00019726,3]
[348995572,1736926244989,-658.07,0.00019726,3]
[348995573,1736926244998,-500.0,0.00019726,3]
[348995574,1736926245008,-500.0,0.00019726,3]
[348995575,1736926245017,-1453.97,0.00019726,3]
[348995576,1736926245026,-312.514698,0.00019861,2]
[348995577,1736926245036,-312.514698,0.00019861,2]
[348995578,1736926245045,-151.0,0.00019861,2]
[348995579,1736926245054,-151.0,0.00019861,2]
[348995580,1736926245063,-152.760578,0.00019863,2]
[348995581,1736926245073,-151.0,0.00019863,2]
[348995582,1736926245082,-151.0,0.00019863,2]
[348995583,1736926245091,-388.301496,0.00019863,2]
[348995584,1736926245101,-388.301496,0.00019863,2]
[348995585,1736926245111,-500.0,0.00019863,3]
[348995586,1736926245122,-500.0,0.00019863,3]
[348995587,1736926245131,-151.0,0.00019863,2]
[348995588,1736926245141,-217.70579,0.00019863,2]
[348995589,1736926245150,-500.0,0.00019863,3]
[348995590,1736926245160,-151.0,0.00019863,2]
[348995591,1736926245169,-359.74374177,0.00019863,3]
[348995592,1736926245178,-500.0,0.00019863,3]
[348995593,1736926245187,-272.842554,0.00019863,2]
[348995594,1736926245197,-272.842554,0.00019863,2]
[348995595,1736926245206,-500.0,0.00019863,2]
[348995596,1736926245215,-500.0,0.00019863,3]
[348995597,1736926245224,-1233.85,0.00019863,3]
[348995598,1736926245234,-500.0,0.00019863,3]
[348995599,1736926245243,-5032.94,0.00019863,3]
[348995600,1736926245252,-500.0,0.00019863,3]
[348995601,1736926245262,-500.0,0.00019863,3]
[348995602,1736926245271,-500.0,0.00019863,3]
[348995603,1736926245281,-1154.13,0.00019863,3]
[348995604,1736926245291,-500.0,0.00019863,3]
[348995605,1736926245300,-500.0,0.00019863,3]
[348995606,1736926245310,-500.0,0.00019863,3]
[348995607,1736926245319,-570.5,0.00019863,3]
[348995608,1736926245328,-500.0,0.00019863,3]
[348995609,1736926245338,-500.0,0.00019863,3]
[348995610,1736926245347,-500.0,0.00019863,3]
[348995611,1736926245358,-500.0,0.00019863,3]
[348995612,1736926245369,-500.0,0.00019863,3]
[348995613,1736926245379,-500.0,0.00019863,3]
[348995614,1736926245388,-500.0,0.00019863,3]
[348995615,1736926245397,-500.0,0.00019863,3]
[348995616,1736926245408,-500.0,0.00019863,3]
[348995617,1736926245421,-500.0,0.00019863,3]
[348995618,1736926245430,-500.0,0.00019863,3]
[348995619,1736926245440,-855.02,0.00019863,3]
[348995620,1736926245450,-220.86792,0.00019863,2]
[348995621,1736926245460,-648.65,0.00019863,3]
[348995622,1736926245471,-220.86792,0.00019863,2]
[348995623,1736926245481,-500.0,0.00019863,3]
[348995624,1736926245495,-2256.52,0.00019863,2]
[348995625,1736926245505,-171.781421,0.00019863,2]
[348995626,1736926245515,-500.0,0.00019863,3]
[348995627,1736926245524,-658.07,0.00019863,3]
[348995628,1736926245534,-500.0,0.00019863,3]
[348995629,1736926245543,-171.781421,0.00019863,2]
[348995630,1736926245553,-500.0,0.00019863,3]
[348995631,1736926245562,-1453.97,0.00019863,3]
[348995632,1736926245571,-244.29449234,0.000199,2]
[348995633,1736926245581,-225.1029517,0.00019943,2]
[348995634,1736926245591,-7473.63595799,0.0002,5]
[348995635,1736926245600,-3795.64664265,0.0002,5]
[348995636,1736926245610,-1169.91184853,0.0002,14]
[348995637,1736926245620,-169.814454,0.0002,2]
[348995638,1736926245630,-151.0,0.0002,2]
[348995639,1736926245639,-151.0,0.0002,2]
[348995640,1736926245648,-204.291533,0.0002,2]
[348995641,1736926245657,-388.301496,0.0002,2]
[348995642,1736926245667,-388.301496,0.0002,2]
[348995643,1736926245676,-267.100654,0.0002,2]
[348995644,1736926245686,-267.100654,0.0002,2]
[348995645,1736926245695,-151.0,0.0002,2]
[348995646,1736926245704,-500.0,0.0002,3]
[348995647,1736926245713,-151.0,0.0002,2]
[348995648,1736926245723,-14986.23011273,0.0002,20]
[348995649,1736926245732,-582.06,0.0002,3]
[348995650,1736926245741,-151.0,0.0002,2]
[348995651,1736926245751,-500.0,0.0002,3]
[348995652,1736926245761,-151.0,0.0002,2]
[348995653,1736926245771,-500.0,0.0002,3]
[348995654,1736926245780,-151.0,0.0002,2]
[348995655,1736926245790,-272.842554,0.0002,2]
[348995656,1736926245799,-272.842554,0.0002,2]
[348995657,1736926245808,-500.0,0.0002,2]
[348995658,1736926245818,-284.8064,0.0002,2]
[348995659,1736926245827,-284.8064,0.0002,2]
[348995660,1736926245837,-452.49,0.0002,3]
[348995661,1736926245847,-235.310411,0.0002,2]
[348995662,1736926245856,-235.310411,0.0002,2]
[348995663,1736926245866,-151.0,0.0002,2]
[348995664,1736926245875,-176.086113,0.0002,2]
[348995665,1736926245885,-1233.85,0.0002,3]
[348995666,1736926245894,-500.0,0.0002,3]
[348995667,1736926245903,-5032.94,0.0002,3]
[348995668,1736926245913,-151.0,0.0002,2]
[348995669,1736926245922,-151.0,0.0002,2]
[348995670,1736926245932,-543.94,0.0002,3]
[348995671,1736926245941,-500.0,0.0002,3]
[348995672,1736926245950,-522.956104,0.0002,2]
[348995673,1736926245959,-522.956104,0.0002,2]
[348995676,1736926245969,-500.0,0.0002,3]
[348995678,1736926245978,-1154.13,0.0002,3]
[348995680,1736926245987,-500.0,0.0002,3]
[348995682,1736926245997,-500.0,0.0002,3]
[348995684,1736926246006,-500.0,0.0002,3]
[348995685,1736926246015,-500.0,0.0002,3]
[348995687,1736926246025,-570.5,0.0002,3]
[348995688,1736926246035,-500.0,0.0002,3]
[348995689,1736926246044,-528.20668792,0.0002,3]
[348995690,1736926246055,-151.0,0.0002,2]
[348995691,1736926246066,-500.0,0.0002,3]
[348995692,1736926246077,-500.0,0.0002,3]
[348995693,1736926246088,-500.0,0.0002,3]
[348995694,1736926246097,-500.0,0.0002,3]
[348995695,1736926246107,-151.0,0.0002,2]
[348995697,1736926246116,-481.39849,0.0002,2]
[348995698,1736926246126,-500.0,0.0002,3]
[348995699,1736926246135,-481.39849,0.0002,2]
[348995701,1736926246144,-500.0,0.0002,3]
[348995703,1736926246153,-500.0,0.0002,3]
[348995705,1736926246162,-500.0,0.0002,3]
[348995707,1736926246171,-855.02,0.0002,3]
[348995709,1736926246181,-220.86792,0.0002,2]
[348995710,1736926246190,-220.86792,0.0002,2]
[348995711,1736926246199,-500.0,0.0002,3]
[348995712,1736926246209,-2256.52,0.0002,2]
[348995713,1736926246218,-171.781421,0.0002,2]
[348995714,1736926246227,-334.06,0.0002,3]
[348995715,1736926246236,-658.07,0.0002,3]
[348995716,1736926246245,-500.0,0.0002,3]
[348995717,1736926246255,-171.781421,0.0002,2]
[348995719,1736926246264,-500.0,0.0002,3]
[348995721,1736926246274,-1453.97,0.0002,3]
[348995723,1736926246283,-244.2944921,0.00020038,2]
[348995724,1736926246293,-522.956104,0.00020038,2]
[348995725,1736926246303,-522.956104,0.00020038,2]
[348995726,1736926246311,-152.065721,0.00020038,2]
[348995727,1736926246321,-151.0,0.00020038,2]
[348995729,1736926246330,-481.39849,0.00020038,2]
[348995731,1736926246339,-481.39849,0.00020038,2]
[348995733,1736926246348,-312.514698,0.00020136,2]
[348995735,1736926246357,-312.514698,0.00020136,2]
[348995737,1736926246368,-151.0,0.00020136,2]
[348995739,1736926246378,-152.760578,0.00020136,2]
[348995741,1736926246387,-151.0,0.00020136,2]
[348995744,1736926246396,-271.831048,0.00020136,2]
[348995747,1736926246407,-151.0,0.00020136,2]
[348995750,1736926246418,-151.0,0.00020136,2]
[348995770,1736926246510,-423.49,0.00020136,3]
[348995774,1736926246521,-151.0,0.00020136,2]
[348995777,1736926246530,-500.0,0.00020136,3]
[348995780,1736926246540,-180.9,0.00020136,3]
[348995783,1736926246550,-151.0,0.00020136,2]
[348995786,1736926246559,-168.4,0.00020136,2]
[348995789,1736926246568,-284.8064,0.00020136,2]
[348995792,1736926246578,-284.8064,0.00020136,2]
[348995795,1736926246588,-235.310411,0.00020136,2]
[348995798,1736926246598,-235.310411,0.00020136,2]
[348995801,1736926246608,-151.0,0.00020136,2]
[348995804,1736926246617,-1233.85,0.00020136,3]
[348995807,1736926246626,-520.59,0.00020136,3]
[348995809,1736926246636,-5032.94,0.00020136,3]
[348995812,1736926246645,-161.087809,0.00020136,2]
[348995814,1736926246654,-151.0,0.00020136,2]
[348995816,1736926246663,-500.0,0.00020136,3]
[348995818,1736926246673,-500.0,0.00020136,3]
[348995820,1736926246683,-1154.13,0.00020136,3]
[348995822,1736926246693,-500.0,0.00020136,3]
[348995824,1736926246702,-500.0,0.00020136,3]
[348995826,1736926246711,-325.71,0.00020136,3]
[348995828,1736926246720,-570.5,0.00020136,3]
[348995830,1736926246731,-500.0,0.00020136,3]
[348995832,1736926246741,-500.0,0.00020136,3]
[348995834,1736926246752,-500.0,0.00020136,3]
[348995836,1736926246762,-500.0,0.00020136,3]
[348995838,1736926246771,-500.0,0.00020136,3]
[348995840,1736926246781,-500.0,0.00020136,3]
[348995842,1736926246791,-500.0,0.00020136,3]
[348995844,1736926246801,-500.0,0.00020136,3]
[348995846,1736926246810,-500.0,0.00020136,3]
[348995848,1736926246819,-855.02,0.00020136,3]
[348995850,1736926246828,-220.86792,0.00020136,2]
[348995852,1736926246837,-220.86792,0.00020136,2]
[348995854,1736926246847,-393.18,0.00020136,3]
[348995856,1736926246856,-2256.52,0.00020136,2]
[348995858,1736926246865,-171.781421,0.00020136,2]
[348995860,1736926246874,-658.07,0.00020136,3]
[348995862,1736926246884,-500.0,0.00020136,3]
[348995864,1736926246893,-171.781421,0.00020136,2]
[348995866,1736926246904,-500.0,0.00020136,3]
[348995868,1736926246913,-1453.97,0.00020136,3]
[348995870,1736926246923,-244.2944921,0.00020176,2]
[348995872,1736926246932,-151.0,0.00020273,2]
[348995874,1736926246942,-204.291533,0.00020273,2]
[348995876,1736926246951,-388.301496,0.00020273,2]
[348995878,1736926246960,-388.301496,0.00020273,2]
[348995880,1736926246970,-267.100654,0.00020273,2]
[348995882,1736926246979,-267.100654,0.00020273,2]
[348995884,1736926246988,-151.0,0.00020273,2]
[348995886,1736926246998,-500.0,0.00020273,3]
[348995888,1736926247008,-151.0,0.00020273,2]
[348995890,1736926247017,-272.842554,0.00020273,2]
[348995893,1736926247027,-272.842554,0.00020273,2]
[348995894,1736926247036,-284.8064,0.00020273,2]
[348995897,1736926247046,-284.8064,0.00020273,2]
[348995898,1736926247055,-235.310411,0.00020273,2]
[348995900,1736926247065,-235.310411,0.00020273,2]
[348995902,1736926247075,-151.0,0.00020273,2]
[348995905,1736926247087,-1233.85,0.00020273,3]
[348995907,1736926247096,-5032.94,0.00020273,3]
[348995908,1736926247106,-151.0,0.00020273,2]
[348995911,1736926247116,-515.01,0.00020273,3]
[348995912,1736926247126,-522.956104,0.00020273,2]
[348995915,1736926247135,-522.956104,0.00020273,2]
[348995917,1736926247144,-500.0,0.00020273,3]
[348995918,1736926247153,-1154.13,0.00020273,3]
[348995921,1736926247163,-500.0,0.00020273,3]
[348995922,1736926247172,-500.0,0.00020273,3]
[348995924,1736926247182,-570.5,0.00020273,3]
[348995927,1736926247191,-500.0,0.00020273,3]
[348995928,1736926247200,-225.25,0.00020273,3]
[348995931,1736926247209,-500.0,0.00020273,3]
[348995933,1736926247220,-500.0,0.00020273,3]
[348995935,1736926247229,-500.0,0.00020273,3]
[348995937,1736926247238,-151.0,0.00020273,2]
[348995939,1736926247247,-481.39849,0.00020273,2]
[348995940,1736926247256,-500.0,0.00020273,3]
[348995942,1736926247265,-481.39849,0.00020273,2]
[348995944,1736926247274,-500.0,0.00020273,3]
[348995947,1736926247283,-500.0,0.00020273,3]
[348995949,1736926247294,-500.0,0.00020273,3]
[348995950,1736926247303,-855.02,0.00020273,3]
[348995953,1736926247313,-220.86792,0.00020273,2]
[348995954,1736926247322,-220.86792,0.00020273,2]
[348995956,1736926247331,-2256.52,0.00020273,2]
[348995958,1736926247341,-171.781421,0.00020273,2]
[348995960,1736926247350,-658.07,0.00020273,3]
[348995963,1736926247360,-357.65,0.00020273,3]
[348995965,1736926247370,-171.781421,0.00020273,2]
[348995966,1736926247380,-500.0,0.00020273,3]
[348995969,1736926247389,-1453.97,0.00020273,3]
[348995970,1736926247398,-244.2944921,0.00020314,2]
[348995972,1736926247410,-151.0,0.0002041,2]
[348995974,1736926247419,-151.0,0.0002041,2]
[348995976,1736926247428,-151.0,0.0002041,2]
[348995978,1736926247438,-152.760578,0.0002041,2]
[348995980,1736926247447,-151.0,0.0002041,2]
[348995982,1736926247458,-151.0,0.0002041,2]
[348995984,1736926247467,-288.197393,0.0002041,2]
[348995986,1736926247476,-407.71,0.0002041,3]
[348995988,1736926247486,-151.0,0.0002041,2]
[348995990,1736926247496,-1233.85,0.0002041,3]
[348995992,1736926247505,-5032.94,0.0002041,3]
[348995994,1736926247515,-500.0,0.0002041,3]
[348995996,1736926247524,-1154.13,0.0002041,3]
[348995999,1736926247533,-500.0,0.0002041,3]
[348996001,1736926247543,-500.0,0.0002041,3]
[348996002,1736926247552,-570.5,0.0002041,3]
[348996005,1736926247562,-500.0,0.0002041,3]
[348996006,1736926247571,-500.0,0.0002041,3]
[348996009,1736926247581,-500.0,0.0002041,3]
[348996010,1736926247590,-500.0,0.0002041,3]
[348996012,1736926247599,-500.0,0.0002041,3]
[348996015,1736926247609,-500.0,0.0002041,3]
[348996016,1736926247618,-503.85,0.0002041,3]
[348996018,1736926247628,-500.0,0.0002041,3]
[348996020,1736926247637,-855.02,0.0002041,3]
[348996023,1736926247647,-2256.52,0.0002041,2]
[348996024,1736926247657,-658.07,0.0002041,3]
[348996026,1736926247666,-500.0,0.0002041,3]
[348996029,1736926247676,-222.146347,0.00020447,2]
[348996031,1736926247686,-244.2944921,0.00020452,2]
[348996033,1736926247695,-151.0,0.00020547,2]
[348996035,1736926247706,-204.291533,0.00020547,2]
[348996037,1736926247716,-267.100654,0.00020547,2]
[348996039,1736926247725,-267.100654,0.00020547,2]
[348996041,1736926247735,-151.0,0.00020547,2]
[348996043,1736926247745,-296.117162,0.00020547,2]
[348996045,1736926247755,-272.842554,0.00020547,2]
[348996047,1736926247764,-272.842554,0.00020547,2]
[348996049,1736926247774,-284.8064,0.00020547,2]
[348996051,1736926247784,-284.8064,0.00020547,2]
[348996053,1736926247794,-235.310411,0.00020547,2]
[348996055,1736926247803,-235.310411,0.00020547,2]
[348996057,1736926247813,-151.0,0.00020547,2]
[348996059,1736926247823,-1233.85,0.00020547,3]
[348996061,1736926247832,-5032.94,0.00020547,3]
[348996063,1736926247842,-273.342586,0.00020547,2]
[348996065,1736926247851,-522.956104,0.00020547,2]
[348996067,1736926247861,-522.956104,0.00020547,2]
[348996069,1736926247870,-500.0,0.00020547,3]
[348996071,1736926247880,-1154.13,0.00020547,3]
[348996072,1736926247889,-458.68,0.00020547,3]
[348996073,1736926247899,-404.3,0.00020547,3]
[348996074,1736926247909,-570.5,0.00020547,3]
[348996076,1736926247919,-500.0,0.00020547,3]
[348996078,1736926247928,-304.11,0.00020547,3]
[348996079,1736926247937,-500.0,0.00020547,3]
[348996081,1736926247946,-500.0,0.00020547,3]
[348996082,1736926247955,-151.0,0.00020547,2]
[348996084,1736926247965,-481.39849,0.00020547,2]
[348996086,1736926247975,-500.0,0.00020547,3]
[348996088,1736926247985,-481.39849,0.00020547,2]
[348996089,1736926247994,-153.58,0.00020547,3]
[348996092,1736926248004,-604.37,0.00020547,3]
[348996094,1736926248013,-855.02,0.00020547,3]
[348996095,1736926248023,-220.86792,0.00020547,2]
[348996096,1736926248033,-220.86792,0.00020547,2]
[348996097,1736926248043,-2256.52,0.00020547,2]
[348996098,1736926248052,-171.781421,0.00020547,2]
[348996099,1736926248062,-658.07,0.00020547,3]
[348996100,1736926248071,-171.781417,0.00020547,2]
[348996101,1736926248081,-500.0,0.00020547,3]
[348996102,1736926248091,-164.69997975,0.00020561,2]
[348996103,1736926248101,-244.2944921,0.0002059,2]
[348996104,1736926248110,-151.0,0.00020661,2]
[348996105,1736926248119,-388.301496,0.00020661,2]
[348996106,1736926248128,-388.301496,0.00020661,2]
[348996107,1736926248137,-2311.0,0.00020661,2]
[348996108,1736926248146,-395.0,0.00020661,2]
[348996109,1736926248156,-150.544,0.00020661,2]
[348996110,1736926248165,-312.514698,0.00020684,2]
[348996111,1736926248174,-312.514698,0.00020684,2]
[348996112,1736926248183,-156.869956,0.00020684,2]
[348996113,1736926248193,-1233.85,0.00020684,3]
[348996114,1736926248202,-5032.94,0.00020684,3]
[348996116,1736926248212,-500.0,0.00020684,3]
[348996118,1736926248222,-1154.13,0.00020684,3]
[348996120,1736926248231,-500.0,0.00020684,3]
[348996122,1736926248241,-570.5,0.00020684,3]
[348996124,1736926248251,-500.0,0.00020684,3]
[348996126,1736926248260,-576.68,0.00020684,3]
[348996128,1736926248270,-500.0,0.00020684,3]
[348996131,1736926248280,-855.02,0.00020684,3]
[348996133,1736926248290,-2256.52,0.00020684,2]
[348996135,1736926248300,-658.07,0.00020684,3]
[348996136,1736926248310,-500.0,0.00020684,3]
[348996138,1736926248319,-6826.56,0.000207,2]
[348996141,1736926248330,-2553.53,0.000207,2]
[348996143,1736926248340,-12233.12,0.000207,2]
[348996145,1736926248350,-522.956104,0.000207,2]
[348996147,1736926248361,-522.956104,0.000207,2]
[348996149,1736926248370,-151.0,0.000207,2]
[348996151,1736926248380,-481.39849,0.000207,2]
[348996153,1736926248390,-481.39849,0.000207,2]
[348996155,1736926248399,-220.86792,0.000207,2]
[348996157,1736926248411,-220.867918,0.000207,2]
[348996159,1736926248423,-1500.0,0.00020722,2]
[348996160,1736926248433,-151.0,0.00020727,2]
[348996162,1736926248442,-272.842554,0.00020727,2]
[348996164,1736926248454,-272.842554,0.00020727,2]
[348996166,1736926248463,-244.2944921,0.00020728,2]
[348996168,1736926248472,-152.760578,0.00020821,2]
[348996170,1736926248481,-151.0,0.00020821,2]
[348996172,1736926248490,-151.0,0.00020821,2]
[348996174,1736926248500,-151.0,0.00020821,2]
[348996176,1736926248510,-151.0,0.00020821,2]
[348996178,1736926248520,-284.8064,0.00020821,2]
[348996180,1736926248530,-284.8064,0.00020821,2]
[348996182,1736926248540,-235.310411,0.00020821,2]
[348996184,1736926248550,-235.310411,0.00020821,2]
[348996186,1736926248559,-151.0,0.00020821,2]
[348996188,1736926248569,-1233.85,0.00020821,3]
[348996190,1736926248579,-5032.94,0.00020821,3]
[348996192,1736926248589,-500.0,0.00020821,3]
[348996194,1736926248598,-1154.13,0.00020821,3]
[348996196,1736926248609,-500.0,0.00020821,3]
[348996198,1736926248619,-570.5,0.00020821,3]
[348996200,1736926248629,-500.0,0.00020821,3]
[348996203,1736926248639,-500.0,0.00020821,3]
[348996211,1736926248730,-855.02,0.00020821,3]
[348996214,1736926248741,-2256.52,0.00020821,2]
[348996216,1736926248751,-658.07,0.00020821,3]
[348996218,1736926248761,-500.0,0.00020821,3]
[348996220,1736926248771,-244.2944921,0.00020866,2]
[348996222,1736926248780,-151.0,0.00020958,2]
[348996224,1736926248791,-204.291533,0.00020958,2]
[348996226,1736926248800,-388.301496,0.00020958,2]
[348996228,1736926248810,-388.301496,0.00020958,2]
[348996230,1736926248820,-267.100654,0.00020958,2]
[348996232,1736926248831,-267.100654,0.00020958,2]
[348996234,1736926248841,-1233.85,0.00020958,3]
[348996236,1736926248851,-5032.94,0.00020958,3]
[348996238,1736926248861,-500.0,0.00020958,3]
[348996240,1736926248871,-1154.13,0.00020958,3]
[348996242,1736926248881,-500.0,0.00020958,3]
[348996244,1736926248891,-570.5,0.00020958,3]
[348996246,1736926248901,-500.0,0.00020958,3]
[348996248,1736926248910,-500.0,0.00020958,3]
[348996250,1736926248919,-855.02,0.00020958,3]
[348996252,1736926248929,-2256.52,0.00020958,2]
[348996254,1736926248938,-658.07,0.00020958,3]
[348996256,1736926248947,-500.0,0.00020958,3]
[348996258,1736926248958,-706.62395626,0.00021,3]
[348996260,1736926248967,-244.2944921,0.00021003,2]
[348996262,1736926248977,-151.0,0.00021093,2]
[348996264,1736926248988,-151.0,0.00021093,2]
[348996266,1736926248997,-151.0,0.00021095,2]
[348996268,1736926249007,-272.842554,0.00021095,2]
[348996271,1736926249017,-272.842554,0.00021095,2]
[348996272,1736926249027,-284.8064,0.00021095,2]